bitfinex/quotes_SOLUSD_20240713
["timestamp","ask_amount","ask_price","bid_price","bid_amount"]
[1720892739654,0.860559,140.26,140.25,73.2042]
[1720892740551,0.860559,140.26,140.25,61.2142]
[1720892741266,0.860559,140.26,140.25,73.2042]
[1720892743062,0.860559,140.26,140.25,93.2042]
[1720892744149,0.860559,140.26,140.25,81.2142]
[1720892744354,0.860559,140.26,140.25,93.2042]
[1720892744577,0.860559,140.26,140.25,48.2042]
[1720892745380,0.860559,140.26,140.25,93.2042]
[1720892753582,0.860559,140.26,140.25,36.2142]
[1720892753772,0.860559,140.26,140.25,48.2042]
[1720892754566,0.860559,140.26,140.25,93.2042]
[1720892754980,0.860559,140.26,140.25,48.2042]
[1720892755489,0.860559,140.26,140.25,93.2042]
[1720892756471,0.860559,140.26,140.25,48.2042]
[1720892757167,0.860559,140.26,140.25,36.2142]
[1720892757677,0.860559,140.26,140.22,15.1738]
[1720892758060,0.860559,140.26,140.24,11.99]
[1720892758677,0.860559,140.26,140.22,15.1738]
[1720892758861,0.860559,140.26,140.24,11.99]
[1720892759584,0.860559,140.26,140.21,11.99]
[1720892759774,0.860559,140.26,140.25,11.99]
[1720892763289,0.860559,140.26,140.18,15.1738]
[1720892763290,0.860559,140.26,140.24,11.99]
[1720892764188,0.860559,140.26,140.18,15.1738]
[1720892764485,0.860559,140.26,140.23,11.99]
[1720892765683,0.860559,140.26,140.24,11.99]
[1720892766467,0.860559,140.26,140.21,11.99]
[1720892766668,0.860559,140.26,140.25,11.99]
[1720892768804,0.860559,140.26,140.25,76.99]
[1720892769086,0.860559,140.26,140.22,15.1738]
[1720892769287,0.860559,140.26,140.25,11.99]
[1720892770392,0.860559,140.26,140.22,15.1738]
[1720892770574,0.860559,140.26,140.25,11.99]
[1720892771304,0.860559,140.26,140.2,6.0711]
[1720892771305,0.860559,140.26,140.16,18.43324499]
[1720892771471,0.860559,140.26,140.23,11.99]
[1720892772495,0.860559,140.26,140.24,11.99]
[1720892772778,0.860559,140.26,140.25,11.99]
[1720892777295,0.860559,140.26,140.24,11.99]
[1720892777906,0.860559,140.26,140.25,11.99]
[1720892779210,0.860559,140.26,140.21,15.1738]
[1720892779382,0.860559,140.26,140.23,11.99]
[1720892781587,19.201759,140.26,140.17,6.0711]
[1720892781778,11.99,140.25,140.2,11.99]
[1720892783888,19.201759,140.26,140.21,11.99]
[1720892784508,7.211759,140.26,140.22,11.99]
[1720892795225,7.211759,140.26,140.21,11.99]
[1720892795397,19.201759,140.26,140.21,11.99]
[1720892797133,0.860559,140.26,140.23,11.99]
[1720892797321,22.694559,140.26,140.16,15.3611]
[1720892797513,11.99,140.25,140.2,11.99]
[1720892798516,34.684559,140.26,140.21,11.99]
[1720892798721,4.20922058,140.25,140.21,11.99]
[1720892799022,34.684559,140.26,140.21,11.99]
[1720892800506,34.684559,140.26,140.17,20.0]
[1720892800820,32.694559,140.26,140.2,11.99]
[1720892801213,44.684559,140.26,140.2,11.99]
[1720892801414,44.684559,140.26,140.17,20.0]
[1720892801415,10.0,140.24,140.18,11.99]
[1720892801625,10.0,140.24,140.17,20.0]
[1720892801626,11.99,140.23,140.17,20.0]
[1720892801827,11.99,140.23,140.18,11.99]
[1720892803217,11.99,140.24,140.19,11.99]
[1720892805937,11.99,140.23,140.18,11.99]
[1720892807513,11.99,140.24,140.19,11.99]
[1720892810556,21.99,140.24,140.19,11.99]
[1720892811355,11.99,140.23,140.18,11.99]
[1720892811555,10.0,140.24,140.13,21.6153]
[1720892811754,11.99,140.21,140.16,11.99]
[1720892811954,11.99,140.21,140.13,15.3611]
[1720892812254,16.1853,140.22,140.16,11.99]
[1720892812541,11.99,140.21,140.16,11.99]
[1720892813132,11.99,140.21,140.13,15.3611]
[1720892813330,11.99,140.21,140.16,11.99]
[1720892815059,11.99,140.21,140.13,15.3611]
[1720892815362,11.99,140.2,140.15,11.99]
[1720892819137,21.99,140.2,140.13,15.3611]
[1720892819347,11.99,140.19,140.1,15.2432]
[1720892819539,11.99,140.19,140.14,11.99]
[1720892822357,11.99,140.19,140.11,20.0]
[1720892822526,11.99,140.19,140.14,11.99]
[1720892823648,11.99,140.19,140.11,20.0]
[1720892823827,11.99,140.18,140.13,11.99]
[1720892825328,11.99,140.19,140.14,11.99]
[1720892827186,11.99,140.19,140.11,20.0]
[1720892827357,10.0,140.16,140.07,15.2432]
[1720892827563,11.99,140.14,140.09,11.99]
[1720892827742,11.99,140.14,140.07,15.2432]
[1720892827937,11.99,140.14,140.09,11.99]
[1720892828346,10.0,140.16,140.11,11.99]
[1720892828734,21.99,140.16,140.11,11.99]
[1720892832276,11.99,140.15,140.1,11.99]
[1720892834583,10.0,140.16,140.1,11.99]
[1720892834750,11.99,140.15,140.07,27.2332]
[1720892834943,31.7931,140.18,140.11,11.99]
[1720892835282,31.7931,140.18,140.13,11.99]
[1720892835455,11.99,140.17,140.12,11.99]
[1720892836043,21.99,140.16,140.11,11.99]
[1720892836249,11.99,140.17,140.12,11.99]
[1720892837874,11.99,140.17,140.11,11.99]
[1720892838372,10.0,140.15,140.11,11.99]
[1720892838578,10.0,140.15,140.07,15.2432]
[1720892838877,10.0,140.15,140.1,11.99]
[1720892839790,11.99,140.16,140.1,11.99]
[1720892839959,10.0,140.15,140.07,63.2032]
[1720892840153,10.0,140.15,140.11,11.99]
[1720892840953,11.99,140.16,140.11,11.99]
[1720892844688,10.0,140.17,140.11,11.99]
[1720892844983,11.99,140.16,140.1,11.99]
[1720892846901,11.99,140.15,140.1,11.99]
[1720892848294,11.99,140.15,140.07,15.2432]
[1720892848495,11.99,140.14,140.09,11.99]
[1720892849200,21.99,140.15,140.1,11.99]
[1720892850373,11.99,140.14,140.08,20.0]
[1720892850698,11.99,140.14,140.09,11.99]
[1720892852091,21.99,140.15,140.1,11.99]
[1720892854505,21.99,140.15,140.08,20.0]
[1720892854719,21.99,140.15,140.1,11.99]
[1720892855810,11.99,140.16,140.1,11.99]
[1720892856015,10.0,140.17,140.1,11.99]
[1720892856185,56.99,140.16,140.11,11.99]
[1720892858701,11.99,140.16,140.11,11.99]
[1720892859021,10.0,140.17,140.11,11.99]
[1720892859188,11.99,140.16,140.08,20.0]
[1720892860801,10.0,140.17,140.08,20.0]
[1720892861018,21.99,140.17,140.08,20.0]
[1720892861204,4.19641439,140.16,140.12,11.99]
[1720892861532,33.7831,140.18,140.13,11.99]
[1720892861728,4.19682937,140.17,140.13,11.99]
[1720892861904,33.7831,140.18,140.13,11.99]
[1720892862309,4.19690124,140.17,140.12,11.99]
[1720892862620,4.19683203,140.16,140.08,20.0]
[1720892862805,11.99,140.17,140.12,11.99]
[1720892863006,4.19681872,140.16,140.12,11.99]
[1720892863205,11.99,140.17,140.12,11.99]
[1720892863431,4.19682932,140.16,140.12,11.99]
[1720892863737,21.7931,140.18,140.13,11.99]
[1720892863738,18.5144,140.18,140.13,11.99]
[1720892863910,4.19719991,140.17,140.13,11.99]
[1720892864108,6.5244,140.18,140.14,11.99]
[1720892864341,11.99,140.2,140.15,11.99]
[1720892864644,4.20053333,140.19,140.15,11.99]
[1720892864935,4.20053066,140.18,140.15,11.99]
[1720892865099,11.99,140.2,140.15,11.99]
[1720892865304,4.20143505,140.19,140.15,11.99]
[1720892865503,11.99,140.2,140.15,11.99]
[1720892865732,4.20143505,140.19,140.15,11.99]
[1720892865936,11.99,140.2,140.15,11.99]
[1720892866099,32.6695,140.21,140.11,15.8466]
[1720892866100,16.1912039,140.19,140.11,15.8466]
[1720892866310,4.2012039,140.18,140.14,11.99]
[1720892866511,11.99,140.19,140.14,11.99]
[1720892866710,4.20025748,140.18,140.14,11.99]
[1720892866928,11.99,140.19,140.14,11.99]
[1720892867119,4.1997633,140.18,140.14,11.99]
[1720892867434,11.99,140.19,140.14,11.99]
[1720892867732,4.20022416,140.18,140.14,11.99]
[1720892867909,11.99,140.19,140.14,11.99]
[1720892868112,4.19982583,140.18,140.14,11.99]
[1720892868312,11.99,140.18,140.11,15.8466]
[1720892868530,11.99,140.18,140.13,11.99]
[1720892868531,4.19911342,140.17,140.13,11.99]
[1720892868739,11.99,140.18,140.13,11.99]
[1720892869037,4.19911875,140.17,140.13,11.99]
[1720892869227,11.99,140.18,140.13,11.99]
[1720892869428,4.19911608,140.17,140.13,11.99]
[1720892869624,10.0,140.19,140.13,11.99]
[1720892869842,16.18911608,140.18,140.13,11.99]
[1720892870142,4.19911608,140.17,140.13,11.99]
[1720892870528,4.19911608,140.17,140.14,11.99]
[1720892870722,4.19911608,140.18,140.14,11.99]
[1720892871938,4.19911608,140.18,140.15,11.99]
[1720892872141,14.19911608,140.19,140.15,11.99]
[1720892872347,4.19911608,140.18,140.13,11.99]
[1720892872646,21.99,140.19,140.13,11.99]
[1720892872831,4.19992075,140.18,140.13,11.99]
[1720892873031,21.99,140.19,140.13,11.99]
[1720892873341,4.19992075,140.18,140.11,15.8466]
[1720892873641,4.19992075,140.18,140.13,11.99]
[1720892874652,4.19992075,140.18,140.11,15.8466]
[1720892874830,16.18992075,140.18,140.13,11.99]
[1720892875027,10.0,140.19,140.13,11.99]
[1720892875239,16.18973729,140.18,140.11,15.8466]
[1720892875421,11.99,140.18,140.13,11.99]
[1720892875720,4.19973729,140.17,140.13,11.99]
[1720892875920,11.99,140.18,140.13,11.99]
[1720892876116,4.19963658,140.17,140.13,11.99]
[1720892876340,11.99,140.18,140.13,11.99]
[1720892876642,4.19963658,140.17,140.13,11.99]
[1720892876821,11.99,140.18,140.13,11.99]
[1720892877021,4.19963658,140.17,140.13,11.99]
[1720892877242,11.99,140.18,140.13,11.99]
[1720892877436,4.19963658,140.17,140.13,11.99]
[1720892877638,11.99,140.18,140.13,11.99]
[1720892877842,4.19963658,140.17,140.13,11.99]
[1720892878045,11.99,140.18,140.13,11.99]
[1720892878351,26.18963658,140.17,140.11,27.8366]
[1720892878530,4.19963658,140.16,140.11,15.8466]
[1720892878728,11.99,140.16,140.11,27.8366]
[1720892879453,21.99,140.17,140.11,27.8366]
[1720892879623,4.19839209,140.16,140.11,27.8366]
[1720892879824,21.99,140.17,140.11,27.8366]
[1720892880063,4.19838943,140.16,140.11,27.8366]
[1720892880261,21.99,140.17,140.11,27.8366]
[1720892880561,16.18842771,140.16,140.11,11.99]
[1720892880729,4.19842771,140.15,140.11,11.99]
[1720892880928,11.99,140.15,140.1,11.99]
[1720892883045,21.99,140.15,140.1,11.99]
[1720892883248,11.99,140.14,140.09,11.99]
[1720892884348,11.99,140.14,140.08,16.6533]
[1720892884349,21.99,140.15,140.1,11.99]
[1720892885960,21.99,140.15,140.08,16.6533]
[1720892886155,4.19634513,140.14,140.1,11.99]
[1720892886354,11.99,140.14,140.09,11.99]
[1720892889659,21.99,140.15,140.1,11.99]
[1720892889861,4.19592956,140.14,140.1,11.99]
[1720892890065,21.99,140.15,140.1,11.99]
[1720892890361,4.19593222,140.14,140.1,11.99]
[1720892890569,21.99,140.15,140.1,11.99]
[1720892890761,4.19603521,140.14,140.1,11.99]
[1720892890964,21.99,140.15,140.1,11.99]
[1720892891154,4.19603255,140.14,140.1,11.99]
[1720892891465,11.99,140.16,140.11,11.99]
[1720892891652,4.19684692,140.15,140.11,11.99]
[1720892891848,11.99,140.16,140.11,11.99]
[1720892892160,4.19685463,140.15,140.11,11.99]
[1720892892362,11.99,140.16,140.11,11.99]
[1720892892551,4.19641506,140.15,140.12,11.99]
[1720892892753,34.0031,140.17,140.12,11.99]
[1720892892957,4.19641773,140.16,140.12,11.99]
[1720892893160,4.19641773,140.15,140.12,11.99]
[1720892893361,4.19641773,140.16,140.12,11.99]
[1720892893546,4.19641773,140.15,140.12,11.99]
[1720892893743,34.0031,140.17,140.12,11.99]
[1720892893949,4.19650606,140.16,140.12,11.99]
[1720892894148,4.19650606,140.15,140.12,11.99]
[1720892894365,4.19650606,140.16,140.12,11.99]
[1720892894778,4.19721095,140.15,140.12,11.99]
[1720892895156,34.0031,140.17,140.12,11.99]
[1720892895349,4.19720828,140.16,140.12,11.99]
[1720892895562,4.19720828,140.15,140.12,11.99]
[1720892895760,4.19720828,140.16,140.12,11.99]
[1720892896063,4.19731126,140.15,140.12,11.99]
[1720892896264,34.0031,140.17,140.12,11.99]
[1720892896470,4.19721361,140.16,140.12,11.99]
[1720892896671,4.19721361,140.15,140.12,11.99]
[1720892896861,4.19721361,140.16,140.12,11.99]
[1720892897061,4.19731126,140.15,140.12,11.99]
[1720892897278,18.292,140.17,140.12,11.99]
[1720892897457,4.1982114,140.16,140.12,11.99]
[1720892897660,18.292,140.17,140.12,11.99]
[1720892897863,4.19841468,140.16,140.12,11.99]
[1720892898056,18.292,140.17,140.12,11.99]
[1720892898265,4.19841734,140.16,140.12,11.99]
[1720892898452,18.292,140.17,140.12,11.99]
[1720892898662,4.19841468,140.16,140.12,11.99]
[1720892898984,18.292,140.17,140.12,11.99]
[1720892899186,4.19801611,140.16,140.13,11.99]
[1720892899357,18.55921141,140.2,140.13,11.99]
[1720892899678,4.20000172,140.19,140.14,11.99]
[1720892899885,4.20000172,140.18,140.14,11.99]
[1720892900179,4.20000172,140.17,140.14,11.99]
[1720892900369,11.99,140.19,140.14,11.99]
[1720892900573,16.1897958,140.18,140.13,11.99]
[1720892900772,4.1997958,140.17,140.13,11.99]
[1720892900973,4.1997958,140.16,140.13,11.99]
[1720892901176,11.99,140.18,140.13,11.99]
[1720892901572,4.19809358,140.17,140.12,27.1745]
[1720892901770,4.19809358,140.16,140.12,27.1745]
[1720892901975,4.19809358,140.15,140.12,27.1745]
[1720892902188,11.99,140.17,140.12,27.1745]
[1720892902389,4.19751453,140.16,140.12,27.1745]
[1720892902587,11.99,140.17,140.12,27.1745]
[1720892902891,4.19831967,140.16,140.12,27.1745]
[1720892903075,11.99,140.17,140.12,27.1745]
[1720892903274,4.19832234,140.16,140.13,11.99]
[1720892903487,21.99,140.18,140.13,11.99]
[1720892903691,4.19838624,140.17,140.13,11.99]
[1720892903985,4.19838624,140.16,140.13,11.99]
[1720892904188,4.1988837,140.16,140.13,11.99]
[1720892904369,11.99,140.18,140.13,11.99]
[1720892904564,4.19918728,140.17,140.13,11.99]
[1720892904784,4.19848246,140.16,140.13,11.99]
[1720892904982,21.99,140.18,140.13,11.99]
[1720892905293,16.18848513,140.17,140.12,27.1745]
[1720892905479,4.19848513,140.16,140.12,27.1745]
[1720892907890,4.19848513,140.16,140.08,15.1845]
[1720892908081,11.99,140.15,140.08,15.1845]
[1720892908399,4.19662287,140.14,140.1,11.99]
[1720892908693,11.99,140.15,140.1,11.99]
[1720892908896,4.19653033,140.14,140.1,11.99]
[1720892909201,21.99,140.16,140.11,11.99]
[1720892909504,4.19642734,140.15,140.11,11.99]
[1720892909678,28.335,140.18,140.13,11.99]
[1720892909995,4.19803776,140.17,140.14,11.99]
[1720892910184,4.19938259,140.16,140.14,11.99]
[1720892910497,21.99,140.18,140.12,11.99]
[1720892910688,4.19775217,140.17,140.12,11.99]
[1720892910865,4.19775217,140.16,140.12,11.99]
[1720892911067,4.19775217,140.15,140.12,11.99]
[1720892911272,11.99,140.17,140.12,11.99]
[1720892911796,4.1971065,140.16,140.12,11.99]
[1720892912007,11.99,140.17,140.12,11.99]
[1720892912008,4.19740479,140.15,140.12,11.99]
[1720892912193,11.99,140.17,140.12,11.99]
[1720892912375,4.19730714,140.16,140.12,11.99]
[1720892912577,4.19730714,140.15,140.12,11.99]
[1720892912779,11.99,140.17,140.12,11.99]
[1720892912995,4.19730714,140.16,140.12,11.99]
[1720892913205,4.19730714,140.15,140.12,11.99]
[1720892913405,11.99,140.17,140.12,11.99]
[1720892913615,4.19730181,140.16,140.12,11.99]
[1720892913900,4.19730181,140.15,140.12,11.99]
[1720892914207,11.99,140.17,140.12,11.99]
[1720892914419,4.19730714,140.16,140.12,11.99]
[1720892914591,4.19730714,140.15,140.12,11.99]
[1720892914792,10.0,140.18,140.12,11.99]
[1720892915004,4.19848776,140.17,140.13,11.99]
[1720892915306,4.19848776,140.17,140.12,15.6853]
[1720892915307,18.335,140.21,140.16,11.99]
[1720892915499,4.2009056,140.2,140.16,11.99]
[1720892915706,4.2009056,140.19,140.16,11.99]
[1720892915875,4.2009056,140.2,140.16,11.99]
[1720892916074,4.2009056,140.19,140.16,11.99]
[1720892916274,16.1909056,140.2,140.15,11.99]
[1720892916594,4.2009056,140.19,140.15,11.99]
[1720892917594,4.2009056,140.19,140.12,15.6853]
[1720892917779,16.1909056,140.19,140.14,11.99]
[1720892917979,11.99,140.19,140.14,11.99]
[1720892918307,4.20080884,140.18,140.14,11.99]
[1720892918501,11.99,140.19,140.14,11.99]
[1720892918712,4.20067394,140.18,140.14,11.99]
[1720892918894,11.99,140.19,140.14,11.99]
[1720892919213,4.20073252,140.18,140.14,11.99]
[1720892919374,11.99,140.19,140.14,11.99]
[1720892919573,4.20066862,140.18,140.14,11.99]
[1720892919785,21.99,140.2,140.15,11.99]
[1720892919974,4.20117009,140.19,140.15,11.99]
[1720892920203,11.99,140.21,140.16,11.99]
[1720892920379,4.20306255,140.2,140.16,11.99]
[1720892920581,4.20306255,140.19,140.16,11.99]
[1720892920886,11.99,140.21,140.16,11.99]
[1720892921094,4.20331372,140.2,140.16,11.99]
[1720892921270,11.99,140.21,140.16,11.99]
[1720892921475,4.2033533,140.2,140.16,11.99]
[1720892921704,21.99,140.22,140.16,11.99]
[1720892921911,4.20274896,140.21,140.16,11.99]
[1720892922080,4.20274896,140.2,140.16,11.99]
[1720892922284,11.99,140.21,140.16,11.99]
[1720892922479,4.20294952,140.2,140.16,11.99]
[1720892922709,11.99,140.21,140.16,11.99]
[1720892923006,4.20274896,140.2,140.16,11.99]
[1720892923176,11.99,140.21,140.16,11.99]
[1720892923177,4.20274896,140.19,140.16,11.99]
[1720892923377,11.99,140.21,140.16,11.99]
[1720892923710,4.20204432,140.2,140.16,11.99]
[1720892923909,4.20204698,140.19,140.12,15.6853]
[1720892924076,11.99,140.2,140.15,11.99]
[1720892924281,4.20163322,140.19,140.15,11.99]
[1720892924505,11.99,140.2,140.15,11.99]
[1720892924906,4.20227604,140.19,140.15,11.99]
[1720892925206,11.99,140.2,140.15,11.99]
[1720892925376,4.20137027,140.19,140.15,11.99]
[1720892925576,11.99,140.2,140.15,11.99]
[1720892925778,4.2011781,140.19,140.15,11.99]
[1720892925991,11.99,140.2,140.15,11.99]
[1720892926204,4.20107781,140.19,140.15,11.99]
[1720892926406,11.99,140.2,140.15,11.99]
[1720892926606,4.20117544,140.19,140.15,11.99]
[1720892926785,11.99,140.2,140.15,11.99]
[1720892926990,4.20117544,140.19,140.15,11.99]
[1720892927199,11.99,140.2,140.15,11.99]
[1720892927405,4.2011781,140.19,140.15,11.99]
[1720892927586,11.99,140.2,140.15,11.99]
[1720892927785,4.20177718,140.19,140.15,11.99]
[1720892928204,11.99,140.2,140.15,11.99]
[1720892928405,4.20188014,140.19,140.15,11.99]
[1720892928601,11.99,140.2,140.15,11.99]
[1720892928811,4.20187747,140.19,140.15,11.99]
[1720892928986,11.99,140.2,140.15,11.99]
[1720892929186,4.20198042,140.19,140.15,11.99]
[1720892929387,11.99,140.2,140.15,11.99]
[1720892929889,4.20198042,140.19,140.15,11.99]
[1720892930082,11.99,140.2,140.15,11.99]
[1720892930393,4.20198042,140.19,140.15,11.99]
[1720892930601,11.99,140.2,140.15,11.99]
[1720892930797,4.20187747,140.19,140.15,11.99]
[1720892931003,11.99,140.2,140.15,11.99]
[1720892931193,4.20188014,140.19,140.12,15.6853]
[1720892931501,11.99,140.2,140.15,11.99]
[1720892931685,4.20127732,140.19,140.15,11.99]
[1720892931998,11.99,140.2,140.15,11.99]
[1720892932201,4.20158885,140.19,140.15,11.99]
[1720892932395,11.99,140.2,140.15,11.99]
[1720892932594,4.20197776,140.19,140.15,11.99]
[1720892932813,11.99,140.2,140.15,11.99]
[1720892933109,4.20198042,140.19,140.15,11.99]
[1720892933308,11.99,140.2,140.15,11.99]
[1720892933604,4.20187747,140.19,140.15,11.99]
[1720892933809,11.99,140.2,140.15,11.99]
[1720892934308,4.20171055,140.19,140.15,11.99]
[1720892934496,11.99,140.2,140.15,11.99]
[1720892934694,4.20190847,140.19,140.15,11.99]
[1720892934892,11.99,140.2,140.15,11.99]
[1720892935200,4.20190847,140.19,140.15,11.99]
[1720892935400,11.99,140.2,140.15,11.99]
[1720892935601,4.20191113,140.19,140.15,11.99]
[1720892935808,11.99,140.2,140.12,15.6853]
[1720892936103,11.99,140.18,140.13,11.99]
[1720892936712,11.99,140.18,140.12,15.6853]
[1720892936912,11.99,140.18,140.13,11.99]
[1720892937291,10.0,140.19,140.12,15.6853]
[1720892937496,21.99,140.16,140.08,15.7221]
[1720892937701,11.99,140.14,140.09,11.99]
[1720892939602,11.99,140.15,140.09,11.99]
[1720892942202,11.99,140.14,140.08,15.7221]
[1720892942401,11.99,140.13,140.08,27.7121]
[1720892943121,11.99,140.13,140.08,15.7221]
[1720892943326,11.99,140.12,140.08,15.7221]
[1720892943531,11.99,140.13,140.08,15.7221]
[1720892944199,11.99,140.12,140.08,15.7221]
[1720892945915,21.99,140.12,140.08,15.7221]
[1720892947011,11.99,140.11,140.08,15.7221]
[1720892947331,21.99,140.12,140.08,15.7221]
[1720892948711,11.99,140.11,140.04,15.7221]
[1720892948906,11.99,140.1,140.05,11.99]
[1720892949924,11.99,140.11,140.06,11.99]
[1720892950221,11.99,140.11,140.04,15.7221]
[1720892950421,11.99,140.11,140.06,11.99]
[1720892951300,21.99,140.1,140.05,11.99]
[1720892952216,21.99,140.1,140.04,15.7221]
[1720892952408,11.99,140.09,140.04,27.7121]
[1720892952809,11.99,140.09,140.04,15.7221]
[1720892953015,45.0,140.08,140.04,15.7221]
[1720892953220,56.99,140.08,140.04,15.7221]
[1720892953904,21.99,140.07,140.02,11.99]
[1720892954421,21.99,140.07,140.01,16.121]
[1720892954603,21.99,140.07,140.02,11.99]
[1720892959234,11.99,140.06,140.01,16.121]
[1720892959434,11.99,140.06,140.01,28.111]
[1720892959931,11.99,140.06,140.01,16.121]
[1720892960130,11.99,140.06,140.01,28.111]
[1720892960819,11.99,140.06,140.01,16.121]
[1720892961022,11.99,140.06,140.02,11.99]
[1720892962225,11.99,140.06,140.01,16.121]
[1720892962426,11.99,140.06,140.01,28.111]
[1720892962739,11.99,140.05,140.01,16.121]
[1720892963039,11.99,140.05,139.97,16.121]
[1720892963235,11.99,140.05,140.0,11.99]
[1720892965418,21.99,140.05,139.97,16.121]
[1720892965621,21.99,140.05,140.0,11.99]
[1720892966022,21.99,140.05,139.97,16.121]
[1720892966241,11.99,140.04,139.99,11.99]
[1720892966847,21.99,140.05,140.0,11.99]
[1720892969345,10.0,140.05,140.01,11.99]
[1720892970345,21.99,140.05,140.0,11.99]
[1720892976759,44.4629,140.07,140.01,11.99]
[1720892980230,11.99,140.06,140.01,11.99]
[1720892983947,10.0,140.05,140.01,11.99]
[1720892987562,10.0,140.05,140.0,11.99]
[1720892989864,21.99,140.05,139.97,16.121]
[1720892990071,21.99,140.05,140.0,11.99]
[1720892990367,11.99,140.03,139.98,11.99]
[1720892991062,10.0,140.05,139.98,11.99]
[1720892991364,11.99,140.04,139.97,14.621]
[1720892991533,11.99,140.04,139.98,11.99]
[1720892995660,11.99,140.04,139.99,11.99]
[1720892996671,10.0,140.03,139.99,11.99]
[1720892996874,28.1071,140.03,139.93,16.0568]
[1720892997045,21.99,140.01,139.93,16.0568]
[1720892997248,21.99,140.01,139.96,11.99]
[1720892999247,21.99,140.01,139.93,16.0568]
[1720892999248,11.99,140.0,139.93,16.0568]
[1720892999452,11.99,140.0,139.95,11.99]
[1720892999661,21.99,140.01,139.96,11.99]
[1720893001477,21.99,140.01,139.93,16.0568]
[1720893001653,21.99,140.01,139.95,11.99]
[1720893002274,21.99,140.01,139.96,11.99]
[1720893002480,10.0,140.01,139.96,11.99]
[1720893002653,21.99,140.01,139.96,11.99]
[1720893003374,10.0,140.01,139.96,11.99]
[1720893003560,21.99,140.01,139.96,11.99]
[1720893006190,21.99,140.01,139.97,11.99]
[1720893006390,10.0,140.01,139.97,11.99]
[1720893008180,21.99,140.01,139.93,16.0568]
[1720893008388,21.99,140.01,139.96,11.99]
[1720893008885,18.1071,140.0,139.95,11.99]
[1720893009072,11.99,139.99,139.94,11.99]
[1720893009590,18.1071,140.0,139.95,11.99]
[1720893010494,6.1171,140.0,139.96,11.99]
[1720893010882,6.1171,140.0,139.97,11.99]
[1720893011297,6.1171,140.0,139.93,47.96]
[1720893011489,6.1171,140.0,139.93,64.0168]
[1720893011688,10.0,140.01,139.93,64.0168]
[1720893012595,43.2964,140.03,139.93,64.0168]
[1720893013098,31.3064,140.03,139.98,11.99]
[1720893013284,6.1171,140.03,139.99,11.99]
[1720893013485,10.0,140.05,140.01,11.99]
[1720893013804,21.99,140.05,139.94,65.0]
[1720893014001,11.99,140.04,139.99,11.99]